{"text_format":"1","workbook":"xlsx","n_sheets":3,"sheets":["data","text","New and Re-enroll CP12"],"not_rendered":{"charts":0,"images":11,"macros":1,"external_links":1,"defined_names":3,"comments":0,"pivot_tables":0},"unopened":[],"bounds":{"document_bytes":16777216,"sheet_cells":100000,"rows_first":2000,"rows_last":500,"rows_between":2000,"halvings":0,"cell_chars":16384,"cell_head_chars":4096},"cells_cut":0,"cells_raw":0,"read":"whole","date_system":"1900"}

{"sheet":"data","index":0,"n_rows":125,"n_cols":6,"rows_kept":125,"cut":false,"hidden":true,"merged":[[66,5,66,16]]}
["Participant",null,"Project or Contract"]
["Location",null,"County"]
["Farm Number",null,"Tract Number"]
[null,null,null,null,1]
[null,"Select ",null,null,2]
["x","CP 1",null,null,3]
[null,"CP 2",null,null,4]
[null,"CP 4D",null,null,5]
[null,"CP 8A",null,null,6]
[null,"CP 9",null,null,7]
[null,"CP 15A",null,null,8]
[null,"CP 21",null,null,9]
[null,"CP 22",null,null,10]
[null,"CP 23"]
[null,"CP 23A"]
[null,"CP 29"]
[null,"CP 30"]
[null,"CP 33"]
[null,"CP 42"]
[]
[null,"Over-seeding Planned"]
["Mowing Pattern (Check 1) "]
[null,"Entire Acreage"]
[null,"Alternating row"]
[null,"Alternating block",null,null,"10 yrs to 10 yrs, 11 months           "]
[null,"Tree / Shrub Area  ",null,null,"11 yrs to 11 yrs, 11 months           "]
[null,"in year 4 or 5, but before end of year 6           ",null,null,"12 yrs to 12 yrs, 11 months           "]
[null,"in year 4 or 5, but before end of year 6",null,null,"13 yrs to 13 yrs, 11 months           "]
[null,"in year 4 or 5, but before end of year 6",null,null,"14 yrs to 14 yrs, 11 months           "]
[null,"in year 4 or 5, but before end of year 9           ",null,null,"15 years                                             "]
[null,"in year 4 or 5, but before end of year 9           ",null,null,"Re-enrollment contract"]
[null,"in year 4 or 5, but before end of year 9           "]
[{"$f":"data!E53","v":0},"Not Applicable"]
[null,"before end of year 8"]
[null,"before end of year 9"]
[null,"before end of year 10"]
[null,"before end of year 11"]
[null,"before end of year 12"]
[null,"before end of year 13"]
[null,"at re-enrollment"]
[]
[null,{"$f":"indirect","v":{"$error":"#NAME?"}}]
[]
[]
[null,null,null,"Mowing Method","MowingImageLookup"]
[null,null,1,"Entire Acreage"]
[null,null,2,"Alternating row"]
[null,null,3,"Alternating block"]
[null,null,4,"Tree / Shrub Area  "]
[]
[]
[]
[]
[]
[]
[null,null,"Select Purpose"]
[null,null,"Provides cover for wildlife.",null,null,"Select Mowing Height"]
["Select County",null,"Provides food for wildlife.",null,null,"Mow cool-season grasses no lower than 6 inches."]
["Adams",null,"Prevents erosion with live vegetation or plant residues, year-round.",null,null,"Mow warm-season grasses no lower than 8 inches."]
["Allegheny"]
["Armstrong"]
["Beaver"]
["Bedford",null,"Select a site preparation method"]
["Berks",null,"Apply appropriate herbicide(s) to CP12 acres prior to seeding, to remove existing vegetation.  ",null,null,"Use non-selective herbicides (like glyphosate) when removing all existing vegetation; use selective herbicides (like 2,4-D formulations) when removing broad-leaved vegetation but retaining existing grasses.  Extremely vigorous plants may require multiple treatments: apply herbicide(s) in the fall of the year prior to  food plot planting, followed by another spring application of herbicides at least two weeks prior to planting.  Always follow herbicide label instructions for rate, timing, and methods of herbicide application(s).  Take special care to avoid herbicide carryover that may negatively affect the CRP or CREP planting.  No cost-sharing is available from USDA for this activity."]
["Blair",null,"Cultivate the CP12 acres, to remove existing vegetation and/or prepare the seedbed.  ",null,null,"Cultivation offers an alternative to herbicides, but requires careful consideration, as it is often less effective than herbicides for killing unwanted vegetation, may actually stir up weed seeds in the soil, and may increase the risk of runoff or erosion from sloped fields.  NRCS strongly recommends cover crops or nurse crops for erosion control and weed suppression on cultivated sites.  Plant cover crops of wheat, barley, or oats on the CP12 acres in the early fall of the year prior to CSG planting.  Plant nurse crops of wheat, barley, or oats as needed in the spring to minimize erosion and suppress weeds while minimizing competition.  Seed nurse crops at 1 bushel per acre.  No cost sharing is available from USDA for this activity. "]
["Bradford",null,"Apply soil amendments on CP1 acres.  ",null,null,"Test soils, using “CRP” code for soil test, then apply amendments as recommended by soil test results.  No cost-sharing is available from USDA for this activity. "]
["Bucks",null,"No site preparation needed.  ",null,null,"This option only applies to fields with little or no weed pressure or competing vegetation AND little or no seed bed.  Be aware that weed control is easiest and most effective prior to planting, rather than after.  No cost-sharing is available from USDA for this activity. "]
["Butler"]
["Cambria"]
["Cameron",null,"Select a seeding method"]
["Carbon",null,"No-Till drill.  ",null,null,"After completion of site preparations, plant the selected seed mixture with a no-till drill, taking care to place seed at the proper depth in the soil.  Seeding pattern should be perpendicular to the direction of surface water flow whenever possible.  "]
["Centre",null,"Conventional drill.  ",null,null,"After completion of site preparations, plant the selected seed mixture with a conventional drill, taking care to place seed at the proper depth in the soil.  Cultipack/firm seed bed after seeding.  Seed and cultipack perpendicular to the direction of surface water flow whenever possible.  "]
["Chester",null,"Broadcasting.  ",null,null,"After completion of site preparations, plant the selected seed mixture by broadcasting seed.  Increase seeding rates by 50% more seed per acre when broadcasting, to compensate for lower germination rates resulting from less seed-to-soil contact.  For example, if a seed mixture’s no-till seeding rate is 6 lbs/ac, then the same seed mixture’s broadcast seeding rate would be 9 lbs/ac, to achieve similar germination rates.  Calibrate the broadcaster prior to spreading seed; use a free-flowing “carrier” material with the seed if needed.  For best results, broadcast half the total seed in one pattern (i.e. East – West), then broadcast the remaining seed perpendicular to the previous pattern (i.e. North – South).  Cultipack/firm seed bed after broadcasting; cultipacking pattern should be perpendicular to the direction of surface water flow whenever possible.     "]
["Clarion"]
["Clearfield"]
["Clinton"]
["Columbia"]
["Crawford",null,"Select a MCM"]
["Cumberland",null,"Inter-seeding / Overseeding"]
["Dauphin",null,"Prescribed Burning"]
["Delaware",null,"Prescribed Mowing"]
["Elk",null,"Strip-Spraying Herbicide for Plant Diversity"]
["Erie"]
["Fayette"]
["Forest"]
["Franklin"]
["Fulton"]
["Greene"]
["Huntingdon"]
["Indiana"]
["Jefferson"]
["Juniata"]
["Lackawanna"]
["Lancaster"]
["Lawrence"]
["Lebanon"]
["Lehigh"]
["Luzerne"]
["Lycoming"]
["McKean"]
["Mercer"]
["Mifflin"]
["Monroe"]
["Montgomery"]
["Montour"]
["Northampton"]
["Northumberland"]
["Perry"]
["Philadelphia"]
["Pike"]
["Potter"]
["Schuylkill"]
["Snyder"]
["Somerset"]
["Sullivan"]
["Susquehanna"]
["Tioga"]
["Union"]
["Venango"]
["Warren"]
["Washington"]
["Wayne"]
["Westmoreland"]
["Wyoming"]
["York"]

{"sheet":"text","index":1,"n_rows":3,"n_cols":15,"rows_kept":3,"cut":false,"hidden":true,"merged":[[0,0,0,13]]}
["CP"]
[1,2,"4D","8A",9,"15A",21,22,23,"23A",29,30,33,42,"comment"]
[null,null,null,"x",null,"x","x",null,null,null,null,null,null,null,"May receive a one-time Prescribed Mowing of their entire acreage.  "]

{"sheet":"New and Re-enroll CP12","index":2,"n_rows":99,"n_cols":15,"rows_kept":99,"cut":false,"hidden":false,"merged":[[61,10,61,11],[61,12,61,14],[71,12,71,14],[32,2,32,7],[32,8,32,9],[33,2,33,7],[33,8,33,9],[60,2,61,2],[61,3,62,3],[35,3,35,14],[68,4,68,5],[68,6,68,7],[68,12,68,14],[61,4,62,5],[61,6,62,7],[61,8,62,8],[61,9,62,9],[64,4,64,5],[64,6,64,7],[97,2,97,14],[96,2,96,10],[91,4,91,8],[69,4,69,5],[69,6,69,7],[69,12,69,14],[55,2,55,14],[37,2,37,14],[63,4,63,5],[63,6,63,7],[63,12,63,14],[92,4,92,8],[86,4,86,8],[83,3,84,3],[83,10,84,10],[83,11,84,11],[83,12,84,12],[83,9,84,9],[82,2,83,2],[83,13,83,14],[53,2,53,14],[65,4,65,5],[65,6,65,7],[64,12,64,14],[66,6,66,7],[66,12,66,14],[67,4,67,5],[71,4,71,5],[71,6,71,7],[93,4,93,8],[94,4,94,8],[87,4,87,8],[88,4,88,8],[89,4,89,8],[90,4,90,8],[7,2,7,14],[10,2,10,14],[2,11,2,13],[2,4,2,8],[3,4,3,8],[4,4,4,8],[21,2,21,14],[22,2,22,14],[27,2,27,14],[26,2,26,5],[4,11,4,13],[26,6,26,13],[2,2,2,3],[3,2,3,3],[4,2,4,3],[11,2,11,3],[12,2,12,3],[15,2,15,14],[17,2,17,14],[23,3,23,14],[74,2,74,14],[67,6,67,7],[67,12,67,14],[70,4,70,5],[70,6,70,7],[70,12,70,14],[40,2,40,14],[41,2,41,14],[42,2,42,14],[46,2,46,6],[46,7,46,10],[46,11,46,14],[47,2,47,6],[47,7,47,10],[47,11,47,14],[48,2,48,6],[48,7,48,10],[48,11,48,14],[72,4,72,5],[72,6,72,7],[72,12,72,14],[73,2,73,10],[65,12,65,14],[66,4,66,5],[83,4,84,7],[85,4,85,8],[29,2,29,14],[30,2,30,7],[30,8,30,9],[31,2,31,7],[31,8,31,9],[34,2,34,7],[34,8,34,9],[38,2,38,14],[39,2,39,14],[52,2,52,14],[43,2,43,6],[43,7,43,10],[43,11,43,14],[44,2,44,6],[44,7,44,10],[44,11,44,14],[45,2,45,6],[45,7,45,10],[45,11,45,14],[49,2,49,6],[49,7,49,10],[49,11,49,14]]}
[]
[]
[null,null,"Participant:",null,null,null,null,null,null,null,"FSA Contract:  "]
[null,null,"Location:",null,null,null,null,null,null,null,"County:  "]
[null,null,"Farm Number:",null,null,null,null,null,null,null,"Tract Number:  "]
[]
[null,null,"Definition"]
[null,null,"The establishment and maintenance of annual or perennial vegetation that provides food and/or cover for wildlife, in conjunction with other permanent habitat plantings (CP1, CP2, or CP4D).  "]
[]
[null,null,"Purpose:  "]
[null,null,"This practice establishes and maintains vegetation that : "]
[null,null,"1."]
[null,null,"2."]
[null,null,null,"3."]
[null,null,"Description:"]
[null,null,"Wildlife food plots consist of vegetation deliberately managed to provide food and/or cover for wildlife.  Vegetation options include annual, perennial, native, and introduced species.  Key features of food plot management depend on the wildlife species of interest; food plots may be managed for a single species like white-tailed deer or for a group of species with similar habitat needs, like grassland birds.  However, other crucial factors include site-specific characteristics like soil fertility, slope, and erosion potential. "]
[null,null,"Practice Guidance for New CP12 acres:  "]
[null,null,"Establish food plot vegetation in the fields indicated in Table 1 and on the Conservation Plan Map, by following the Site Preparation and Planting guidance below.  Weed control (mowing or herbicide treatment) may help the food plot establish succeessfully.  After food plot establishment, either for a single year or for multiple years, follow the Operation and Maintenance given requirements below.  CRP/CREP contracts require periodic management of contracted acres, called Mid-Contract Management.  For CP12 acres replanted annually, the need for Mid-Contract Management does not apply; however, any CP12 acres not replanted annually must be planted to a permanent cover, and will require Mid-Contract Management."]
[]
[]
[null,null,"Site Preparation"]
[null,null,"Select a site preparation method"]
[null,null,{"$f":"IF(C22=data!C64,data!F64, IF(C22=data!C65,data!F65, IF(C22=data!C66,data!F66, IF(C22=data!C67,data!F67))))","v":false}]
[null,null,"SITE-                   SPECIFIC NOTES","Enter text here"]
[]
[null,null,"Planting Method for CP12 acres"]
[null,null,"Chosen planting method:",null,null,null,"Select a seeding method"]
[null,null,{"$f":"IF(G27=data!C71,data!F71, IF(G27=data!C72,data!F72, IF(G27=data!C73,data!F73)))","v":false}]
[null,null,"Establishment of  CP12 Acres"]
[null,null,"Establish and maintain annual grains, annual or perennial forbs, or perennial grasses with high food and cover value to provide shelter, cover, and food for wildlife.  Wildlife benefits most from multi-species mixes which diversify the timing, amount, and type of food or cover provided.  Food plots should provide vegetation that offers unique food or cover benefits which are lacking in the immediate landscape.  Single-species food plots of commonly-available commercial grains (corn, wheat, soybeans, etc.) are less appealing to wildlife, because such plants are commonly available in the landscape.  Establish the following food plot mix: "]
[null,null,"Plant Species",null,null,null,null,null,"Seeding Rate                     (lbs / ac)",null,"Acres to be seeded","Pounds of seed needed"]
[null,null,"insert plant species",null,null,null,null,null,null,null,null,{"$f":"ROUND(I32*K32,0)","v":0}]
[null,null,"insert plant species",null,null,null,null,null,null,null,null,{"$f":"ROUND(I33*K33,0)","v":0}]
[null,null,"insert plant species",null,null,null,null,null,null,null,null,0]
[null,null,"insert plant species",null,null,null,null,null,null,null,null,0]
[null,null,"SITE-                   SPECIFIC NOTES","Enter text here"]
[null,null,"Operation and Maintenance   "]
[null,null,"CRP/CREP policy limits total CP12 acres to 1/2-acre of food plot for every contiguous 20 acres of permanent habitat established through CP1, CP2, and/or CP4D practices; in addition, individual food plots cannot exceed 5 acres in size.  Food plots exceeding either of these size limits must be planted to a permanent vegetative cover similar to the CP1, CP2, or CP4D practices, at the participant's expense."]
[null,null,"DO NOT harvest plant materials from food plots or graze food plots with any form of livestock without prior approval from NRCS and FSA.  Leave food plot vegetation standing until planting preparations begin in spring, to provide valuable food and cover for wildlife during winter months.  "]
[null,null,"Food plot acreage may be rotated throughout eligible CRP/CREP areas; however, total acreage of individual CREP practices on the tract should not change.  For example, a 1-acre food plot (CP12) may be relocated throughout a 40-acre CP2 field, but may never grow larger than 1 acre.  Consult with NRCS and FSA prior to moving a food plot to a new location.  If food plot acres are relocated or abandoned during the CRP/CREP contract, replant the previous food plot location to conservation cover approved by NRCS.  Cost-share funds are not available for the establishment, maintenance, or re-vegetation of wildlife food plots."]
[null,null,"To control unwanted vegetation and to keep the existing conservation cover in compliance with the CRP/CREP contract, perform maintenance (by spot mowing or herbicide treatment) on specific, limited locations where weeds occur (not whole fields or pre-set amounts of fields (i.e. 1/3 of a field).  Mow up to 20% (one-fifth) of any CP12 field in any given year; do not mow below 6 inches in height.  Treatment with appropriate herbicides should always follow label directions for rate, amount, and timing of herbicide application.  "]
[null,null,"Both spot mowing and herbicide treatment must occur between August 1 and August 31.  Spot mowing or herbicide treatment needed at other times of the year—for example, thistle control in May or early June—is possible, but must be requested from and pre-approved by the FSA County Committee.  "]
[null,null,"Control noxious weeds (see list below) on all CP12 acres over the entire length of the CRP/CREP contract.  Mowing alone may not be sufficient to control noxious or woody vegetation; a follow-up herbicide treatment may be necessary.  Any CP12 cover destroyed must be re-established."]
[null,null,"animated oat",null,null,null,null,"giant hogweed",null,null,null,"musk/nodding thistle"]
[null,null,"broomrape",null,null,null,null,"goatsrue",null,null,null,"Palmer amaranth"]
[null,null,"bull thistle",null,null,null,null,"hydrilla",null,null,null,"poison hemlock"]
[null,null,"Canada thistle",null,null,null,null,"johnsongrass",null,null,null,"purple loosestrife"]
[null,null,"common waterhemp",null,null,null,null,"kudzu",null,null,null,"shattercane"]
[null,null,"dodder",null,null,null,null,"mile-a-minute",null,null,null,"tall waterhemp"]
[null,null,"Eur. wand loosestrife",null,null,null,null,"multiflora rose",null,null,null,"wavyleaf basketgrass"]
[]
[null,null,"Mid-Contract Management (MCM)"]
[null,null,"CRP/CREP contracts require periodic management of contracted acres, called Mid-Contract Management; however, for CP12 acres replanted annually, the need for Mid-Contract Management does not apply.  But any abandoned or permanently-vegetated CP12 acres will require Mid-Contract Management that matches the type of cover established on those acres (introduced cool-season grasses, native grasses, or trees/shrubs)."]
[null,null,"Only on abandoned or permanently-vegetated CP12 acres, implement the MCM practices indicated in Table 2 below, to prolong, improve, or diversify the benefits of the plant cover.  Specific guidance for each MCM practice chosen can be found on the related Job Sheet(s) included with this CRP/CREP plan.  Contact NRCS for a site visit and field evaluation before conducting MCM, to verify that the contracted MCM activity applies to the condition of the site."]
[]
[null,null,"By signing this document, the participant agrees to implement the CP12 conservation practice following the technical recommendations provided by NRCS and approved by FSA.    Any changes to the CP12 practice must receive NRCS and FSA approval prior to implementation."]
[]
[]
[]
[null,null,"Table 1: CP12 Implementation and Schedule"]
[null,null,"Select number of fields",null,null,null,null,null,null,null,"     (items in grey are for USDA reporting only)"]
[null,null,null,"Field","Acres Planned",null,"Year Planned",null,"Acres Applied","Date Applied","Certified by",null,"Comments"]
[null,null,10,null,null,null,null,null,null,null,"NRCS","Part."]
[null,null,null,1]
[{"$f":"IF($C$63<2,\"No\",\"Yes\")","v":"Yes"},null,null,2]
[{"$f":"IF($C$63<3,\"No\",\"Yes\")","v":"Yes"},null,null,3]
[{"$f":"IF($C$63<4,\"No\",\"Yes\")","v":"Yes"},null,null,4]
[{"$f":"IF($C$63<5,\"No\",\"Yes\")","v":"Yes"},null,null,5]
[{"$f":"IF($C$63<6,\"No\",\"Yes\")","v":"Yes"},null,null,6]
[{"$f":"IF($C$63<7,\"No\",\"Yes\")","v":"Yes"},null,null,7]
[{"$f":"IF($C$63<8,\"No\",\"Yes\")","v":"Yes"},null,null,8]
[{"$f":"IF($C$63<9,\"No\",\"Yes\")","v":"Yes"},null,null,9]
[{"$f":"IF($C$63<10,\"No\",\"Yes\")","v":"Yes"},null,null,10]
[null,null,"Certification Statement:"]
[null,null,"I certify that implementation of this conservation practice is complete, meets criteria for the stated purpose(s), and meets the NRCS conservation practice standard and specifications."]
[]
[null,null,"Certified By:"]
[]
[]
[]
[]
[null,null,"Table 2: Mid-Contract Management Activity and Schedule"]
[null,null,"Select number of fields",null,null,null,null,null,null,null,"     (items in grey are for USDA reporting only)"]
[null,null,null,"Field","Mid-Contract Management",null,null,null,null,"Acres Planned","Year Planned","Acres Applied","Year Applied","Certified By:"]
[null,null,10,null,null,null,null,null,null,null,null,null,null,"NRCS / TSP","Participant"]
[null,null,null,1,"Select a MCM"]
[{"$f":"IF($C$85<2,\"No\",\"Yes\")","v":"Yes"},null,null,2,"Select a MCM"]
[{"$f":"IF($C$85<3,\"No\",\"Yes\")","v":"Yes"},null,null,3,"Select a MCM"]
[{"$f":"IF($C$85<4,\"No\",\"Yes\")","v":"Yes"},null,null,4,"Select a MCM"]
[{"$f":"IF($C$85<5,\"No\",\"Yes\")","v":"Yes"},null,null,5,"Select a MCM"]
[{"$f":"IF($C$85<6,\"No\",\"Yes\")","v":"Yes"},null,null,6,"Select a MCM"]
[{"$f":"IF($C$85<7,\"No\",\"Yes\")","v":"Yes"},null,null,7,"Select a MCM"]
[{"$f":"IF($C$85<8,\"No\",\"Yes\")","v":"Yes"},null,null,8,"Select a MCM"]
[{"$f":"IF($C$85<9,\"No\",\"Yes\")","v":"Yes"},null,null,9,"Select a MCM"]
[{"$f":"IF($C$85<10,\"No\",\"Yes\")","v":"Yes"},null,null,10,"Select a MCM"]
[]
[null,null,"Certification Statement:"]
[null,null,"I certify that implementation of this conservation practice is complete, meets criteria for the stated purpose(s), and meets the NRCS conservation practice standard and specifications."]
[null,null,"Certified By:"]